Cogmind - Beta 13 @@@ ROGUE MODE // 2024.04.12 @ 15:23:55 Player: Exceptionally Mediocre Result: Destroyed by D-53 Grenadier with Mini Grenade Launcher Performance ------------- Evolutions (1) 500 Regions Visited (3) 600 Robots Destroyed (64) 320 Value Destroyed (1467) 1467 Prototype IDs (2) 40 Alien Tech Used (0) 0 Bonus (-332) -332 TOTAL SCORE: 2595 Bonus ------- Follower Combat Kills 25 Friendly Fire -357 Cogmind --------- Core Integrity 0/400 Matter 156/300 Energy 100/100 System Corruption 3% Temperature Cool (0) Movement Core (1450) Ox28 Location -9/Mines Parts ------- > --- POWER (1) -------- (None) > --- PROPULSION (3) --- (None) > --- UTILITY (3) ------ Huge Storage Unit Sensor Array > --- WEAPON (2) ------- Rocket Launcher > --- INVENTORY (25) --- Ion Engine Light Ion Engine Light Ion Engine Light Ion Engine Fission Core Light Treads Light Treads Light Treads Light Treads Light Treads Improved Heat Sink Cooling System Medium Battery (150) Large Matter Pod (150) Power Shielding Propulsion Shielding Light Armor Plating Beam Rifle Particle Gun Beam Cannon Heavy Assault Rifle Rocket Launcher Mace Mace Peak State ------------ > --- POWER ------------ Improved Ion Engine > --- PROPULSION ------- Light Treads Improved Treads Improved Treads > --- UTILITY ---------- Cooling System Huge Storage Unit Hardened Light Armor Plating > --- WEAPON ----------- Beam Cannon Heavy Assault Rifle > --- INVENTORY -------- Ion Engine Light Ion Engine Light Ion Engine Light Treads Light Treads Light Treads Light Treads Light Treads Medium Battery Large Matter Pod Sensor Array Power Shielding Propulsion Shielding Propulsion Shielding Light Armor Plating Light Armor Plating Light Armor Plating Beam Rifle Particle Gun Particle Cannon Heavy Assault Rifle Rocket Launcher Rocket Launcher Mace Mace [Rating: 18] Favorites ----------- Power Light Ion Engine Engine Light Ion Engine Power Core Light Nuclear Core Propulsion Improved Treads Treads Improved Treads Wheel Wheel Flight Unit Improved Flight Unit Utility Huge Storage Unit Device Sensor Array Storage Huge Storage Unit Protection Hardened Light Armor Plating Weapon Light Cannon Energy Gun Beam Rifle Energy Cannon Beam Cannon Ballistic Gun Heavy Assault Rifle Ballistic Cannon Light Cannon Launcher Rocket Launcher Build | -11 -10 -9 -9 ------- Run | Yrd Mat Mat Min Slots Evolved 2 | . . 2 . Power . | . . . . Propulsion 1 | . . 1 . Utility 1 | . . 1 . Weapon . | . . . . Parts Attached 52 | 8 12 28 4 Power 9 | 2 2 4 1 Engine 8 | 2 2 4 . Core 1 | . . . 1 Reactor . | . . . . Propulsion 17 | 2 2 13 . Treads 9 | . . 9 . Leg . | . . . . Wheel 7 | 2 2 3 . Hover . | . . . . Flight 1 | . . 1 . Utility 13 | 2 3 7 1 Device 5 | 1 1 3 . Storage 3 | 1 2 . . Processor . | . . . . Hackware . | . . . . Protection 5 | . . 4 1 Artifact . | . . . . Weapon 13 | 2 5 4 2 Energy Gun 4 | 1 3 . . Energy Cannon 2 | . . 2 . Ballistic Gun 4 | 1 1 2 . Ballistic Cannon 1 | . 1 . . Launcher 2 | . . . 2 Special Weapon . | . . . . Impact Weapon . | . . . . Slashing Weapon . | . . . . Piercing Weapon . | . . . . Special Melee Weapon . | . . . . Unidentified Prototypes 2 | . . 2 . Parts Lost 15 | . 3 4 8 Power 5 | . 1 2 2 Propulsion 4 | . 1 . 3 Utility 4 | . 1 1 2 Weapon 2 | . . 1 1 Highest Loss Streak 6 | . 3 2 6 To Critical Strikes . | . . . . Average Slot Usage (%) 97 | . 99 98 89 Engine 10 | . 14 11 2 Core 1 | . . . 8 Treads 14 | . . 20 32 Wheel 16 | . 28 12 . Device 11 | . 13 10 11 Storage 12 | . 14 11 11 Protection 4 | . . 10 2 Energy Gun 6 | . 14 . . Energy Cannon 6 | . . 10 10 Ballistic Gun 3 | . 3 5 . Ballistic Cannon 5 | . 9 4 . Launcher 2 | . . . 11 Naked Turns . | . . . . Heaviest Build 100 | 15 91 100 97 Greatest Support 66 | 26 26 66 66 Greatest Overweight (x) 3 | . 3 2 2 Average Overweight (x) 1 | . 1 1 1 Largest Inventory Capacity 25 | 8 25 25 25 Average Capacity 22 | 7 19 25 25 Most Carried 25 | 6 25 25 25 Average Carried 20 | 3 15 24 24 Final Capacity 25 | 8 25 25 25 Final Carried 25 | 6 25 24 24 Class Distribution -------------------- 100% | Mutant Dominant Class ---------------- Mutant | -10/Materials Mutant | -9/Materials Mutant | -9/Mines Resources | -11 -10 -9 -9 ----------- Run | Yrd Mat Mat Min Matter Collected 1461 | 272 557 546 86 Remotely . | . . . . Salvage Created 2045 | 146 693 1029 177 Parts 142 | 10 44 72 16 Haulers Intercepted 5 | . 2 3 . Recyclers Shooed 1 | . 1 . . Parts Field Recycled . | . . . . Retrieved Matter . | . . . . Parts Self-Destructed . | . . . . Prevented . | . . . . Kills | -11 -10 -9 -9 ------- Run | Yrd Mat Mat Min Combat Hostiles Destroyed 50 | . 14 17 19 Melee 1 | . . 1 . Guns 13 | . 11 2 . Cannons 17 | . 3 14 . AOE 19 | . . . 19 Classes Destroyed 12 | 2 7 2 1 Worker 4 | . 2 2 . Builder 3 | . 1 1 1 Tunneler 5 | 4 . . 1 Hauler 5 | . 2 3 . Recycler 2 | 1 . 1 . Operator 2 | . 1 1 . Watcher 4 | . 2 2 . Swarmer 7 | . 3 . 4 Grunt 27 | . 11 12 4 Duelist 1 | . . 1 . Sentry 4 | . . 4 . Assembled 13 | . . . 13 Best Kill Streak 14 | 4 4 5 14 Combat Bots Only 13 | . 3 4 13 Max Kills in Single Turn 4 | 3 1 2 4 Gunslinging . | . . . . Exploded 4 | . . . 4 Melee 1 | . . 1 . Uniques/NPCs Destroyed . | . . . . Combat | -11 -10 -9 -9 -------- Run | Yrd Mat Mat Min Hostile Shots Fired 211 | . 78 93 40 Missed 51 | . 19 26 6 Damage Taken 2757 | . 713 1106 938 Core 651 | . 216 199 236 Absorbed by Shields . | . . . . Redirected to Shielding 20 | . . 20 . Core Remaining (%) 56 | 100 13 . . Volleys Fired 171 | 6 74 71 20 Largest 2 | 2 2 2 1 Hottest 128 | 60 112 128 68 Shots Fired 327 | 12 148 145 22 Gun 174 | 12 114 48 . Cannon 136 | . 34 97 5 Launcher 17 | . . . 17 Special . | . . . . Kinetic 153 | 6 78 69 . Thermal 145 | . 64 76 5 Explosive 17 | . . . 17 Electromagnetic 12 | 6 6 . . Robot Hit Streak 14 | 3 14 12 5 Robot Miss Streak 6 | 2 6 6 2 Penetration Max . | . . . . Secondary Targets . | . . . . Shots Hit Robots 184 | 5 79 92 8 Core Hits 118 | 7 29 37 45 Critical Kills . | . . . . Critical Parts Destroyed . | . . . . Critical Strikes 3 | . 2 1 . Burn 3 | . 2 1 . Melee Attacks . | . . . . Impact . | . . . . Slashing . | . . . . Piercing . | . . . . Sneak Attacks . | . . . . Combat Hostiles . | . . . . Follow-up Attacks . | . . . . Damage Inflicted 4474 | 202 1096 1572 1604 Guns 1399 | 86 835 478 . Cannons 1388 | . 261 1086 41 Explosions 1679 | 116 . . 1563 Melee . | . . . . Ramming 8 | . . 8 . Kinetic 1330 | 25 566 739 . Thermal 1463 | 116 481 825 41 Explosive 1563 | . . . 1563 Electromagnetic 110 | 61 49 . . Impact . | . . . . Slashing . | . . . . Piercing . | . . . . Highest Corruption 3 | . . 3 3 Average Corruption 2 | . . 2 3 Corruption Purged . | . . . . Corruption Blocked . | . . . . Effects 24 | . . 11 13 Message Errors 3 | . . 2 1 Matter Fused 6 | . . 4 2 Heat Flow Errors 2 | . . . 2 Energy Discharges 3 | . . 1 2 Parts Fused 2 | . . 1 1 Data Loss (minor) 2 | . . . 2 Data Loss (major) 1 | . . . 1 Misfires 5 | . . 3 2 Overload Shots . | . . . . Overflow Damage 49 | . 1 . 48 Projectiles 1 | . 1 . . Explosions 48 | . . . 48 Melee . | . . . . Knockbacks 3 | . 2 1 . Impact . | . . . . Kinetic 3 | . 2 1 . Secondary . | . . . . Self-Inflicted Damage 171 | . . . 171 Shots 4 | . . . 4 Rammed 1 | . . 1 . Targets Rammed 2 | . . 2 . Kicked . | . . . . Crushed 1 | . . 1 . Highest Temperature 373 | . 238 373 277 Average Temperature 71 | . 55 75 86 Received Heat Transfer 918 | . 414 483 21 Effects 2 | . 1 1 . Energy Bleed 1 | . . 1 . Interference 1 | . 1 . . Siege Activations . | . . . . Robots Corrupted . | . . . . Combat Hostiles . | . . . . Parts Fried . | . . . . Impact Corruptions . | . . . . Robots Melted . | . . . . Combat Hostiles . | . . . . Parts Melted 2 | . 2 . . Heat Transferred 3493 | 200 1369 1850 74 Parts Sabotaged . | . . . . Parts Stolen . | . . . . Parts Stripped . | . . . . Power Chain Reactions 1 | 1 . . . Alert | -11 -10 -9 -9 ------- Run | Yrd Mat Mat Min Peak Influence 308 | 25 308 273 246 Initial 88 | . 16 23 88 Average 133 | 9 146 109 179 Maximum Alert Level 1 | . 1 1 1 Low Security (%) 69 | 100 65 87 31 Level 1 30 | . 34 12 68 Level 2 . | . . . . Level 3 . | . . . . Level 4 . | . . . . Level 5 . | . . . . High Security . | . . . . Max Security . | . . . . Squads Dispatched 5 | . 4 1 . Investigation 3 | . 3 . . Extermination . | . . . . Reinforcement 2 | . 1 1 . Assault . | . . . . Garrison . | . . . . Intercept . | . . . . Searches Triggered . | . . . . Construction Impeded . | . . . . Haulers Reinforced . | . . . . Active Scanning Responses . | . . . . Cargo Convoy Interrupts . | . . . . Stealth | -11 -10 -9 -9 --------- Run | Yrd Mat Mat Min Distress Signals 3 | . 1 2 . Communications Jammed . | . . . . Distress Signals . | . . . . Times Spotted 70 | . 24 23 23 Peak Tracking Total 17 | . 3 4 17 Tactical Retreats 4 | . 1 2 1 Traps | -11 -10 -9 -9 ------- Run | Yrd Mat Mat Min Traps Triggered 6 | . 4 2 . Indirectly . | . . . . Trap Hack Attempts . | . . . . Triggered . | . . . . Disarmed . | . . . . Reprogrammed . | . . . . Reused . | . . . . Traps Extracted . | . . . . Installed . | . . . . Triggered . | . . . . Machines | -11 -10 -9 -9 ---------- Run | Yrd Mat Mat Min Machines Disabled 8 | . 1 . 7 Max in Single Turn 2 | . 1 . 2 Machines Repaired . | . . . . Machines Dismantled . | . . . . Machines Sabotaged . | . . . . Overloaded Fab Kills . | . . . . Hacking | -11 -10 -9 -9 --------- Run | Yrd Mat Mat Min Machines Accessed 11 | . 8 3 . Terminals 10 | . 7 3 . Fabricators . | . . . . Repair Stations . | . . . . Recycling Units 1 | . 1 . . Scanalyzers . | . . . . Garrison Access . | . . . . Total Hacks 28 | . 21 7 . Successful 17 | . 11 6 . Failed 11 | . 10 1 . Catastrophic 1 | . . 1 . Database Lockouts . | . . . . Manual 26 | . 19 7 . Terminals 27 | . 20 7 . Fabricators . | . . . . Repair Stations . | . . . . Recycling Units 1 | . 1 . . Scanalyzers . | . . . . Garrison Access . | . . . . Terminal Hacks 4 | . 3 1 . Record 1 | . 1 . . Emergency Access Points 1 | . 1 . . Terminal Index 1 | . . 1 . Hauler Manifests 1 | . 1 . . Fabricator Hacks . | . . . . Repair Station Hacks . | . . . . Recycling Unit Hacks 1 | . 1 . . Report Inventory 1 | . 1 . . Scanalyzer . | . . . . Garrison Access Hacks . | . . . . Unauthorized Hacks 12 | . 7 5 . Terminals 12 | . 7 5 . Assimilate 2 | . . 2 . Botnet 10 | . 7 3 . Fabricators . | . . . . Repair Stations . | . . . . Recycling Units . | . . . . Scanalyzers . | . . . . Garrison Access . | . . . . Data Cores Recovered . | . . . . Used . | . . . . Hacking Detections 6 | . 4 2 . Full Trace Events 2 | . 2 . . Feedback Events . | . . . . Feedback Blocked . | . . . . Robot Schematics Acquired . | . . . . Robots Built . | . . . . Authchips . | . . . . Time . | . . . . Total Robot Build Rating . | . . . . Part Schematics Acquired . | . . . . Parts Built . | . . . . Authchips . | . . . . Time . | . . . . Total Part Build Rating . | . . . . Parts Repaired . | . . . . Time . | . . . . Parts Recycled . | . . . . Recycled Matter . | . . . . Retrieved Matter . | . . . . Retrieved Components . | . . . . Parts Scanalyzed . | . . . . Part Schematics Acquired . | . . . . Parts Damaged . | . . . . Bothacking | -11 -10 -9 -9 ------------ Run | Yrd Mat Mat Min Used RIF Installer . | . . . . Robots Hacked . | . . . . Non-combat . | . . . . Combat . | . . . . Robot Hacks Applied . | . . . . Relay Couplers Released . | . . . . Fabnet Peak Effective % . | . . . . Robots Rewired . | . . . . Allies Hacked . | . . . . Hacks Repelled . | . . . . Allies | -11 -10 -9 -9 -------- Run | Yrd Mat Mat Min Total Allies 4 | . . 1 3 Largest Group 3 | . . 1 3 Highest-Rated Group 40 | . . 10 40 Highest-Rated Ally 16 | . . 10 16 Total Orders . | . . . . Ally Attacks 5 | . . . 5 Total Damage 46 | . . . 46 Kills 1 | . . . 1 Allies Corrupted . | . . . . Allies Melted . | . . . . Intel | -11 -10 -9 -9 ------- Run | Yrd Mat Mat Min Robot Analysis Total . | . . . . Derelict Logs Recovered . | . . . . Drone Launches . | . . . . Drone Recoveries . | . . . . Exploration | -11 -10 -9 -9 ------------- Run | Yrd Mat Mat Min Turns Passed 3332 | 90 1301 1357 584 Spaces Moved 1732 | 61 829 619 223 Core 1 | 1 . . . Treads 493 | . . 270 223 Legs . | . . . . Wheels 1238 | 60 829 349 . Hover . | . . . . Flight . | . . . . Fastest Speed 50 | 50 90 116 240 Average Speed 151 | 87 119 170 240 Slowest Speed 320 | 90 135 240 320 Overloaded Moves . | . . . . Propulsion Burnouts . | . . . . Robots Hopped . | . . . . Cave-ins Triggered . | . . . . Exploration Rate (%) 51 | 5 97 48 54 Regions Visited 3 Branch Regions 1 Pre-discovered Areas . | . . . . Known Exits Taken . | . . . . Unknown Exits Taken 3 | 1 1 1 . Scrap Searched 1 | . . . 1 Spaces Dug 8 | . . . 8 Terrain Destroyed 101 | 6 . . 95 Melee . | . . . . Projectile . | . . . . AOE 101 | 6 . . 95 Terrain Rammed . | . . . . Walls Destroyed . | . . . . Machines Disabled . | . . . . Actions | -11 -10 -9 -9 --------- Run | Yrd Mat Mat Min Total 2137 | 82 1007 796 252 Wait 46 | . 44 2 . Move 1729 | 60 828 618 223 Hop . | . . . . Pick Up 80 | 7 32 38 3 Fast Attach 12 | 6 4 2 . Attach 15 | 1 2 10 2 Detach 2 | . . 2 . Swap 25 | 1 6 16 2 Drop 55 | 1 17 35 2 Fire 171 | 6 74 71 20 Melee . | . . . . Ram . | . . . . Kick . | . . . . Crush 2 | . . 2 . Escape Stasis . | . . . . Rewire . | . . . . Trap . | . . . . Miscellaneous . | . . . . Route ------- -11/Scrapyard -10/Materials (discovered 4 exits: *Mat x3 / [*Min]) -9/Materials (discovered 2 exits: [*Mat] / [*Min]) -9/Mines (discovered 1 exit: [*Mat]) History --------- Turn | Location | Event 16 | -11/Scrapyard | Discovered new exit (range 16) 91 | -11/Scrapyard | Entered Materials 335 | -10/Materials | Build established: Mutant 391 | -10/Materials | Discovered new exit (range 10) 433 | -10/Materials | Core integrity fell below 50% 533 | -10/Materials | Discovered new exit (range 13) 1028 | -10/Materials | Discovered new exit (range 9) 1230 | -10/Materials | Discovered new exit (range 8) 1350 | -10/Materials | Core integrity fell below 20% 1376 | -10/Materials | Lost 3 parts (1p1n1u) 1392 | -10/Materials | Entered another Materials area 1392 | -9/Materials | Evolved 2 slots: Propulsion x1, Utility x1 2078 | -9/Materials | Discovered new exit (range 5) 2703 | -9/Materials | Discovered new exit (range 8) 2749 | -9/Materials | Entered Mines 2829 | -9/Mines | Assembled infested the area 2834 | -9/Mines | Assisted by a Guerilla fighting off Assembled 2844 | -9/Mines | Core integrity fell below 50% 2900 | -9/Mines | Destroyed 13 combat bots 3109 | -9/Mines | Discovered new exit (range 9) 3116 | -9/Mines | Received a Rocket Launcher from a helpful Derelict 3156 | -9/Mines | Assisted by bots powering up and referring to "LRC-V3" 3332 | -9/Mines | Core integrity fell below 20% 3333 | -9/Mines | Destroyed by D-53 Grenadier with Mini Grenade Launcher Last Messages --------------- 03316_ Destroyed Imp. Treads. 03316_ Pulverizer disabled. 03318_ G-47 Trooper destroyed. 03318_ Pulverizer disabled. 03318_ G-34 Mercenary destroyed. 03321_ The unstable cave ceiling collapses. 03324_ Trooper 2b destroyed. 03325_ G-34 Mercenary destroyed. 03327_ The unstable cave ceiling collapses. 03327_ T-07 Excavator destroyed. 03327_ Pulverizer disabled. 03327_ Imp. Treads destroyed. 03328_ D-53 Grenadier suffers critical hit (Burn). 03329_ Particle Cannon destroyed. 03329_ Lgt. Armor Plating destroyed. 03330_ Trooper 2a destroyed. 03331_ Lgt. Nuclear Core destroyed. 03331_ Lgt. Treads destroyed. 03332_ The unstable cave ceiling collapses. Map ----- +----------------------------------------------------+ | | | | | | | | | ?????????????????????????????????????????????????? | | ?????????????????????????????????????????????????? | | ?????????????????????????????????????????????????? | | ?????????????????????????????????????????????????? | | ?????????????????????????????????????????????????? | | ?????????????????????????????????????????????????? | | ?????????????????????????###?????????????????????? | | ????????????????????????# #????????????????????? | | ???????????????????????? $#????????????????????? | | ???????????????????????# #????????????????????? | | ??????????????????????## #????????????????????? | | ?????????????????????## ##???????????????????? | | ????????????????????## #???????????????????? | | ????????????????????# #???????????????????? | | ????????????????????? #???????????????????? | | ????????###??????????# #???????????????????? | | ???????## ###???###### ##??????????????????? | | ???????# ???? ? #??????????????????? | | ##????## #?????# #?## #??????????????????? | | #??### #?????#?#?# #??????????????????? | | #### ##????# #?## #??????????????????? | | ###### #?# @ #??????????????????? | | ## ### #??????????????????? | | #### #??????????????????? | | ?## #?????????????????? | | ## ###### #?????????????????? | | # ##?? % ??????????????? | | #?# d #?????????????? | | #?# d #?????????????? | | ##?# "" #????????????? | | ### ##??# "" #????????????? | | # ##?#####???# %=##????????????? | | ### ! ##??????????# ?" ?????????????? | | ??## ##???????????# ?? " ??????????????? | | ??## #???????????????? " ""????????????????? | | ?## ##????????????????" """???????????????????? | | ?# ##???????????????? ??????????????????????? | | ?# #???????????????????????????????????????? | | # [ ##???????????????????????????????????????? | | ##????????????????????????????????????????? | | # ?????????????????????????????????????????? | | # ####????????????????????????????????????????? | | # #???????????????????????????????????????????? | | ## ##???????????????????????????????????????????? | | ?####????????????????????????????????????????????? | | ?????????????????????????????????????????????????? | +----------------------------------------------------+ Best States ------------- Heat Dissipation 50 Energy Generation 14 Energy Capacity 265 Matter Stores 300 Matter Capacity 300 Sight Range 16 Robot Scan Range 14 Terrain Scan Range 16 Terrain Scan Density 10 Armor Coverage 150 Power Shielding 33 Evasion (%) 44 Recoil Reduction 3 Item Schematics ----------------- None Robot Schematics ------------------ None Fabricated ------------ Nothing Alien Tech Used ----------------- None Achievements -------------- None Challenges ------------ None Game ------ Seed MiningTacticalInjector Manual? 0 Play Time 00:29:10 Cumulative 42.6 hours Start 2024.04.12 @ 14:38:00 End 2024.04.12 @ 15:23:55 Sessions 1 Manual Loads 0 Difficulty Rogue Special Mode None Game No. 46 Rogue 46 Adventurer 0 Explorer 0 Win Type - Total 0 Types 0/0/0/0/0/0/0/0/0 Lore% 17 Gallery% 34 Achievement% 26 Wizard Run 0 Options --------- Layout 1 ASCII 0 Keyboard 1 Movement Vi Keybinds 0 Fullscreen 1 Font 24/Smallcaps Map View 50x35 Zoom Use 0% Tactical HUD 1 Map Filters NONE Filters NONE Steam 1 RUN: c11063c0-6897-4c3d-a2c1-3a88475ca76e